Cogmind - Beta 13 @@@ ROGUE MODE // 2024.04.11 @ 14:08:10 Player: Kinga Result: Self-destructed Performance ------------- Evolutions (4) 2000 Regions Visited (6) 1200 Robots Destroyed (92) 460 Value Destroyed (2807) 2807 Prototype IDs (7) 140 Alien Tech Used (0) 0 Bonus (522) 522 TOTAL SCORE: 7129 Bonus ------- High Alert Combat Kills 22 Entered DSFs 500 Cogmind --------- Core Integrity 375/850 Matter 300/300 Energy 100/100 System Corruption 0% Temperature Cool (0) Movement Core (750) Ox14 Location -6/Factory Parts ------- > --- POWER (1) -------- (None) > --- PROPULSION (4) --- Cooled Cesium-ion Thruster > --- UTILITY (8) ------ High-capacity Storage Unit Improved Targeting Computer System Shield > --- WEAPON (2) ------- Katana Power Sword > --- INVENTORY (20) --- Light Fission Core Improved Target Analyzer Authchip [Storage] Authchip [Weapon] Gatling Laser Flak Gun Coil Gun Proton Missile Launcher Proton Missile Launcher Rocket Launcher Katana Peak State ------------ > --- POWER ------------ Angular Momentum Engine > --- PROPULSION ------- Advanced Treads Advanced Treads Advanced Treads Cooled Cesium-ion Thruster > --- UTILITY ---------- Advanced Heat Sink High-capacity Storage Unit Structural Scanner Improved Targeting Computer Improved Light Armor Plating Hacking Suite System Shield > --- WEAPON ----------- Katana Power Sword > --- INVENTORY -------- Light Fission Core Improved Target Analyzer Authchip [Storage] Authchip [Weapon] Gatling Laser Flak Gun Coil Gun Proton Missile Launcher Rocket Launcher Katana [Rating: 50] Favorites ----------- Power Light Ion Engine Engine Light Ion Engine Propulsion Light Treads Treads Light Treads Wheel Wheel Flight Unit Cooled Cesium-ion Thruster Utility Improved Targeting Computer Device Improved Heat Sink Storage Large Storage Unit Processor Improved Targeting Computer Hackware System Shield Protection Light Armor Plating Weapon Assault Cannon Energy Gun Small Laser Energy Cannon Beam Cannon Ballistic Gun Assault Rifle Ballistic Cannon Assault Cannon Launcher Rocket Launcher Impact Weapon Heavy Flail Slashing Weapon Katana Build | -11 -10 -9 -8 -7 -7 -6 ------- Run | Yrd Mat Mat Mat Fac DSF Fac Slots Evolved 8 | . . 2 2 2 . 2 Power . | . . . . . . . Propulsion 2 | . . . 1 1 . . Utility 6 | . . 2 1 1 . 2 Weapon . | . . . . . . . Parts Attached 86 | 6 8 32 16 . 11 13 Power 10 | 1 1 5 1 . 1 1 Engine 10 | 1 1 5 1 . 1 1 Core . | . . . . . . . Reactor . | . . . . . . . Propulsion 26 | 2 2 7 7 . 6 2 Treads 21 | . 2 7 7 . 4 1 Leg . | . . . . . . . Wheel 4 | 2 . . . . 2 . Hover . | . . . . . . . Flight 1 | . . . . . . 1 Utility 23 | 1 2 8 5 . . 7 Device 6 | . . 2 1 . . 3 Storage 3 | 1 1 . . . . 1 Processor 8 | . 1 5 2 . . . Hackware 2 | . . . . . . 2 Protection 4 | . . 1 2 . . 1 Artifact . | . . . . . . . Weapon 27 | 2 3 12 3 . 4 3 Energy Gun 4 | 1 . 3 . . . . Energy Cannon 2 | . . 2 . . . . Ballistic Gun 11 | 1 3 4 . . 3 . Ballistic Cannon 3 | . . 2 1 . . . Launcher 2 | . . 1 . . 1 . Special Weapon . | . . . . . . . Impact Weapon 1 | . . . 1 . . . Slashing Weapon 4 | . . . 1 . . 3 Piercing Weapon . | . . . . . . . Special Melee Weapon . | . . . . . . . Unidentified Prototypes 3 | . . 2 . . . 1 Parts Lost 47 | . 4 17 6 . 8 12 Power 7 | . 1 3 . . 2 1 Propulsion 15 | . 2 5 1 . 2 5 Utility 12 | . . 2 3 . 1 6 Weapon 13 | . 1 7 2 . 3 . Highest Loss Streak 8 | . 4 5 5 . 6 8 To Critical Strikes . | . . . . . . . Average Slot Usage (%) 92 | . 94 95 97 84 72 89 Engine 7 | . 10 7 9 7 5 4 Treads 19 | . 7 21 25 23 10 22 Wheel 4 | . 20 . . . 7 . Device 6 | . . 8 2 7 7 11 Storage 9 | . 14 11 9 7 7 6 Processor 20 | . 13 23 26 23 20 10 Hackware 2 | . . . . . . 12 Protection 2 | . . . 5 . . 3 Energy Gun 4 | . 4 10 . . . . Ballistic Gun 7 | . 23 8 . . 6 . Ballistic Cannon 3 | . . . 14 7 2 . Slashing Weapon 2 | . . . 1 7 1 13 Naked Turns . | . . . . . . . Heaviest Build 63 | 12 27 43 42 37 39 63 Greatest Support 88 | 26 40 40 66 66 88 88 Greatest Overweight (x) 15 | . 1 1 1 . 1 15 Average Overweight (x) . | . . . . . . . Largest Inventory Capacity 20 | 8 15 15 15 15 15 20 Average Capacity 14 | 6 14 15 15 15 15 16 Most Carried 15 | 4 15 15 15 10 14 11 Average Carried 10 | 1 10 12 11 10 12 6 Final Capacity 20 | 8 15 15 15 15 15 20 Final Carried 13 | 4 11 13 10 10 9 11 Class Distribution -------------------- 66% | Mutant 16% | Scavenger-Mutant 16% | Hacker-Mutant Dominant Class ---------------- Mutant | -10/Materials Mutant | -9/Materials Mutant | -8/Materials Mutant | -7/Factory Mutant | -7/DSF Hacker-Mutant | -6/Factory Resources | -11 -10 -9 -8 -7 -7 -6 ----------- Run | Yrd Mat Mat Mat Fac DSF Fac Matter Collected 2196 | 256 294 482 796 . 57 311 Remotely 56 | . . 56 . . . . Salvage Created 3106 | . 458 1539 592 . 70 447 Parts 204 | . 38 106 27 . 8 25 Haulers Intercepted 7 | . 2 4 1 . . . Recyclers Shooed 2 | . . . 2 . . . Parts Field Recycled . | . . . . . . . Retrieved Matter . | . . . . . . . Parts Self-Destructed . | . . . . . . . Prevented . | . . . . . . . Kills | -11 -10 -9 -8 -7 -7 -6 ------- Run | Yrd Mat Mat Mat Fac DSF Fac Combat Hostiles Destroyed 73 | . 12 28 19 . 5 9 Melee 9 | . . . . . . 9 Guns 35 | . 12 20 . . 3 . Cannons 27 | . . 6 19 . 2 . AOE 2 | . . 2 . . . . Classes Destroyed 15 | . 4 6 3 . 1 1 Worker 2 | . 1 1 . . . . Builder 2 | . . 2 . . . . Hauler 7 | . 2 4 1 . . . Mechanic 1 | . . . 1 . . . Operator 3 | . . 2 . . . 1 Watcher 4 | . . 4 . . . . Swarmer 18 | . 6 6 . . 3 3 Cutter 2 | . . . . . 2 . Grunt 35 | . 6 12 15 . . 2 Brawler 1 | . . 1 . . . . Duelist 2 | . . 1 . . . 1 Sentry 11 | . . 8 1 . . 2 Specialist 2 | . . . 2 . . . Programmer 1 | . . . . . . 1 Heavy 1 | . . . 1 . . . Best Kill Streak 6 | . 5 6 4 . 3 3 Combat Bots Only 5 | . 5 5 4 . 3 3 Max Kills in Single Turn 2 | . 1 2 1 . 1 1 Gunslinging 1 | . . 1 . . . . Exploded 1 | . . 1 . . . . Melee 1 | . . . . . . 1 Uniques/NPCs Destroyed . | . . . . . . . Combat | -11 -10 -9 -8 -7 -7 -6 -------- Run | Yrd Mat Mat Mat Fac DSF Fac Hostile Shots Fired 607 | . 94 143 106 . 138 126 Missed 180 | . 32 42 35 . 42 29 Damage Taken 7005 | . 704 1446 1416 . 1877 1562 Core 1491 | . 214 171 132 . 499 475 Absorbed by Shields . | . . . . . . . Regen/Repaired (Parts) 139 | . . . 139 . . . Core Remaining (%) 55 | 100 14 57 76 . 28 . Volleys Fired 240 | . 59 90 74 . 17 . Largest 2 | . 2 2 2 . 2 . Hottest 105 | . 70 105 88 . 77 . Shots Fired 455 | . 119 176 127 . 33 . Gun 302 | . 119 160 . . 23 . Cannon 147 | . . 15 127 . 5 . Launcher 6 | . . 1 . . 5 . Special . | . . . . . . . Kinetic 340 | . 113 72 127 . 28 . Thermal 77 | . 6 71 . . . . Explosive 6 | . . 1 . . 5 . Electromagnetic 32 | . . 32 . . . . Robot Hit Streak 36 | . 10 30 36 . 3 . Robot Miss Streak 4 | . 4 4 2 . 4 . Penetration Max . | . . . . . . . Secondary Targets 3 | . 1 2 . . . . Max Gunslinging Chain 1 | . 1 1 . . . . Shots Hit Robots 351 | . 69 129 105 . 18 30 Core Hits 154 | . 25 63 39 . 11 16 Critical Kills 2 | . 1 1 . . . . Critical Parts Destroyed 1 | . . 1 . . . . Critical Strikes 11 | . 1 2 6 . . 2 Destroy 3 | . 1 2 . . . . Blast 6 | . . . 6 . . . Sever 2 | . . . . . . 2 Melee Attacks 42 | . . . . . . 42 Impact . | . . . . . . . Slashing 42 | . . . . . . 42 Piercing . | . . . . . . . Sneak Attacks 2 | . . . . . . 2 Combat Hostiles . | . . . . . . . Follow-up Attacks 4 | . . . . . . 4 Damage Inflicted 6979 | . 799 2301 2572 . 322 985 Guns 2679 | . 799 1645 . . 235 . Cannons 2884 | . . 256 2555 . 73 . Explosions 396 | . . 382 . . 14 . Melee 985 | . . . . . . 985 Ramming 35 | . . 18 17 . . . Kinetic 4328 | . 749 716 2555 . 308 . Thermal 954 | . 50 904 . . . . Explosive 116 | . . 102 . . 14 . Electromagnetic 561 | . . 561 . . . . Impact . | . . . . . . . Slashing 985 | . . . . . . 985 Piercing . | . . . . . . . Highest Corruption 1 | . 1 1 . . . . Average Corruption 1 | . 1 1 . . . . Corruption Purged . | . . . . . . . Corruption Blocked . | . . . . . . . Effects 2 | . 2 . . . . . Data Loss (minor) 1 | . 1 . . . . . Misfires 1 | . 1 . . . . . Overload Shots . | . . . . . . . Overflow Damage 83 | . . 45 3 . . 35 Projectiles 8 | . . 5 3 . . . Explosions 40 | . . 40 . . . . Melee 35 | . . . . . . 35 Knockbacks 24 | . . . 24 . . . Impact . | . . . . . . . Kinetic 24 | . . . 24 . . . Secondary . | . . . . . . . Self-Inflicted Damage 167 | . . 128 . . 39 . Shots 6 | . . 4 . . 2 . Rammed 8 | . . 6 2 . . . Targets Rammed 8 | . . 6 2 . . . Kicked . | . . . . . . . Crushed . | . . . . . . . Highest Temperature 258 | . 36 224 258 . . 4 Average Temperature 71 | . 12 53 85 . . 4 Received Heat Transfer 1797 | . 249 480 432 . 81 555 Effects 3 | . . 2 1 . . . Interference 3 | . . 2 1 . . . Siege Activations . | . . . . . . . Robots Corrupted . | . . . . . . . Combat Hostiles . | . . . . . . . Parts Fried 2 | . . 2 . . . . Impact Corruptions . | . . . . . . . Robots Melted . | . . . . . . . Combat Hostiles . | . . . . . . . Parts Melted . | . . . . . . . Heat Transferred 1829 | . 148 1681 . . . . Parts Sabotaged . | . . . . . . . Parts Stolen . | . . . . . . . Parts Stripped . | . . . . . . . Power Chain Reactions 4 | . . 4 . . . . Alert | -11 -10 -9 -8 -7 -7 -6 ------- Run | Yrd Mat Mat Mat Fac DSF Fac Peak Influence 445 | . 164 265 445 38 207 238 Initial 108 | . . 6 79 38 30 108 Average 135 | . 61 107 266 38 116 124 Maximum Alert Level 2 | . . 1 2 . 1 1 Low Security (%) 76 | 100 100 92 13 100 95 91 Level 1 21 | . . 7 75 . 4 8 Level 2 2 | . . . 10 . . . Level 3 . | . . . . . . . Level 4 . | . . . . . . . Level 5 . | . . . . . . . High Security . | . . . . . . . Max Security . | . . . . . . . Squads Dispatched 14 | . 2 4 4 . 2 2 Investigation 5 | . 2 3 . . . . Extermination 1 | . . . . . . 1 Reinforcement 8 | . . 1 4 . 2 1 Assault . | . . . . . . . Garrison . | . . . . . . . Intercept . | . . . . . . . Searches Triggered . | . . . . . . . Construction Impeded 1 | . . . 1 . . . Haulers Reinforced . | . . . . . . . Active Scanning Responses . | . . . . . . . Cargo Convoy Interrupts . | . . . . . . . Stealth | -11 -10 -9 -8 -7 -7 -6 --------- Run | Yrd Mat Mat Mat Fac DSF Fac Distress Signals 6 | . . 5 1 . . . Communications Jammed . | . . . . . . . Distress Signals . | . . . . . . . Times Spotted 119 | . 20 39 27 . 19 14 Peak Tracking Total 7 | . 5 5 5 . 7 4 Tactical Retreats 10 | . . 2 2 . 6 . Traps | -11 -10 -9 -8 -7 -7 -6 ------- Run | Yrd Mat Mat Mat Fac DSF Fac Traps Triggered 7 | . 3 3 . . 1 . Indirectly . | . . . . . . . Trap Hack Attempts . | . . . . . . . Triggered . | . . . . . . . Disarmed . | . . . . . . . Reprogrammed . | . . . . . . . Reused . | . . . . . . . Traps Extracted . | . . . . . . . Installed . | . . . . . . . Triggered . | . . . . . . . Machines | -11 -10 -9 -8 -7 -7 -6 ---------- Run | Yrd Mat Mat Mat Fac DSF Fac Machines Disabled 1 | . . 1 . . . . Max in Single Turn 1 | . . 1 . . . . Machines Repaired . | . . . . . . . Machines Dismantled . | . . . . . . . Machines Sabotaged . | . . . . . . . Overloaded Fab Kills . | . . . . . . . Hacking | -11 -10 -9 -8 -7 -7 -6 --------- Run | Yrd Mat Mat Mat Fac DSF Fac Machines Accessed 19 | . 5 9 4 1 . . Terminals 18 | . 5 9 3 1 . . Fabricators . | . . . . . . . Repair Stations 1 | . . . 1 . . . Recycling Units . | . . . . . . . Scanalyzers . | . . . . . . . Garrison Access . | . . . . . . . Total Hacks 50 | . 14 25 10 1 . . Successful 24 | . 6 10 7 1 . . Failed 26 | . 8 15 3 . . . Catastrophic 4 | . 1 3 . . . . Database Lockouts . | . . . . . . . Manual 42 | . 14 20 8 . . . Terminals 48 | . 14 25 8 1 . . Fabricators . | . . . . . . . Repair Stations 2 | . . . 2 . . . Recycling Units . | . . . . . . . Scanalyzers . | . . . . . . . Garrison Access . | . . . . . . . Terminal Hacks 15 | . 4 8 2 1 . . Prototype ID Bank 2 | . . 2 . . . . Open DSF 1 | . . . . 1 . . Emergency Access Points 1 | . 1 . . . . . Terminal Index 2 | . 1 1 . . . . Alert Level 1 | . . 1 . . . . Unreport Threat 4 | . 1 2 1 . . . Security Status 1 | . . 1 . . . . Recall Investigation 1 | . 1 . . . . . Hauler Manifests 2 | . . 1 1 . . . Fabricator Hacks . | . . . . . . . Repair Station Hacks 2 | . . . 2 . . . Scan Component 1 | . . . 1 . . . Repair 1 | . . . 1 . . . Recycling Unit Hacks . | . . . . . . . Scanalyzer . | . . . . . . . Garrison Access Hacks . | . . . . . . . Unauthorized Hacks 7 | . 2 2 3 . . . Terminals 7 | . 2 2 3 . . . Botnet 7 | . 2 2 3 . . . Fabricators . | . . . . . . . Repair Stations . | . . . . . . . Recycling Units . | . . . . . . . Scanalyzers . | . . . . . . . Garrison Access . | . . . . . . . Data Cores Recovered . | . . . . . . . Used . | . . . . . . . Hacking Detections 14 | . 5 7 2 . . . Full Trace Events 6 | . 2 4 . . . . Feedback Events . | . . . . . . . Feedback Blocked . | . . . . . . . Robot Schematics Acquired . | . . . . . . . Robots Built . | . . . . . . . Authchips . | . . . . . . . Time . | . . . . . . . Total Robot Build Rating . | . . . . . . . Part Schematics Acquired . | . . . . . . . Parts Built . | . . . . . . . Authchips . | . . . . . . . Time . | . . . . . . . Total Part Build Rating . | . . . . . . . Parts Repaired 1 | . . . 1 . . . Time 38 | . . . 38 . . . Parts Recycled . | . . . . . . . Recycled Matter . | . . . . . . . Retrieved Matter . | . . . . . . . Retrieved Components . | . . . . . . . Parts Scanalyzed . | . . . . . . . Part Schematics Acquired . | . . . . . . . Parts Damaged . | . . . . . . . Bothacking | -11 -10 -9 -8 -7 -7 -6 ------------ Run | Yrd Mat Mat Mat Fac DSF Fac Used RIF Installer . | . . . . . . . Robots Hacked . | . . . . . . . Non-combat . | . . . . . . . Combat . | . . . . . . . Robot Hacks Applied . | . . . . . . . Relay Couplers Released . | . . . . . . . Fabnet Peak Effective % . | . . . . . . . Robots Rewired . | . . . . . . . Allies Hacked . | . . . . . . . Hacks Repelled . | . . . . . . . Allies | -11 -10 -9 -8 -7 -7 -6 -------- Run | Yrd Mat Mat Mat Fac DSF Fac Total Allies . | . . . . . . . Largest Group . | . . . . . . . Highest-Rated Group . | . . . . . . . Highest-Rated Ally . | . . . . . . . Total Orders . | . . . . . . . Ally Attacks . | . . . . . . . Total Damage . | . . . . . . . Kills . | . . . . . . . Allies Corrupted . | . . . . . . . Allies Melted . | . . . . . . . Intel | -11 -10 -9 -8 -7 -7 -6 ------- Run | Yrd Mat Mat Mat Fac DSF Fac Robot Analysis Total . | . . . . . . . Derelict Logs Recovered . | . . . . . . . Drone Launches . | . . . . . . . Drone Recoveries . | . . . . . . . Exploration | -11 -10 -9 -8 -7 -7 -6 ------------- Run | Yrd Mat Mat Mat Fac DSF Fac Turns Passed 3724 | 54 651 1282 818 16 293 610 Spaces Moved 1747 | 47 417 546 339 12 165 221 Core 3 | 1 . . . . . 2 Treads 1243 | . 77 546 339 12 50 219 Legs . | . . . . . . . Wheels 501 | 46 340 . . . 115 . Hover . | . . . . . . . Flight . | . . . . . . . Fastest Speed 50 | 50 90 160 145 145 100 145 Average Speed 144 | 88 106 163 154 145 114 185 Slowest Speed 800 | 90 160 240 240 145 145 800 Overloaded Moves . | . . . . . . . Propulsion Burnouts . | . . . . . . . Robots Hopped . | . . . . . . . Cave-ins Triggered . | . . . . . . . Exploration Rate (%) 41 | 3 66 63 29 . 79 7 Regions Visited 6 Branch Regions . Pre-discovered Areas . | . . . . . . . Known Exits Taken 1 | . . . . 1 . . Unknown Exits Taken 4 | 1 1 1 1 . . . Scrap Searched . | . . . . . . . Spaces Dug . | . . . . . . . Terrain Destroyed 46 | . . 21 5 . 20 . Melee . | . . . . . . . Projectile 5 | . . . 5 . . . AOE 41 | . . 21 . . 20 . Terrain Rammed . | . . . . . . . Walls Destroyed . | . . . . . . . Machines Disabled . | . . . . . . . Actions | -11 -10 -9 -8 -7 -7 -6 --------- Run | Yrd Mat Mat Mat Fac DSF Fac Total 2438 | 56 512 755 505 11 236 363 Wait 252 | . 18 54 61 . 37 82 Move 1741 | 46 416 545 338 11 164 221 Hop . | . . . . . . . Pick Up 53 | 4 9 21 8 . 2 9 Fast Attach 28 | 6 2 11 2 . 3 4 Attach 43 | . 4 17 8 . 7 7 Detach 6 | . 1 1 . . 4 . Swap 15 | . 2 4 6 . 1 2 Drop 16 | . 1 6 6 . 1 2 Fire 240 | . 59 90 74 . 17 . Melee 36 | . . . . . . 36 Ram . | . . . . . . . Kick . | . . . . . . . Crush 8 | . . 6 2 . . . Escape Stasis . | . . . . . . . Rewire . | . . . . . . . Trap . | . . . . . . . Miscellaneous . | . . . . . . . Route ------- -11/Scrapyard -10/Materials (discovered 2 exits: *Mat x2) -9/Materials (discovered 3 exits: *Mat x2 / [*Min]) -8/Materials -7/Factory -7/DSF -6/Factory (discovered 1 exit: [*Low]) History --------- Turn | Location | Event 19 | -11/Scrapyard | Discovered new exit (range 16) 55 | -11/Scrapyard | Entered Materials 303 | -10/Materials | Build established: Mutant 303 | -10/Materials | Discovered new exit (range 15) 538 | -10/Materials | Core integrity fell below 50% 570 | -10/Materials | Lost 4 parts (1p2n1w) 625 | -10/Materials | Discovered new exit (range 16) 637 | -10/Materials | Core integrity fell below 20% 706 | -10/Materials | Entered another Materials area 706 | -9/Materials | Evolved 2 slots: Utility x2 920 | -9/Materials | Lost 4 parts (2n2w) 953 | -9/Materials | Discovered new exit (range 16) 1245 | -9/Materials | Discovered new exit (range 16) 1842 | -9/Materials | Lost 3 parts (1p2w) 1912 | -9/Materials | Lost 5 parts (2n2u1w) 1926 | -9/Materials | Discovered new exit (range 16) 1988 | -9/Materials | Entered another Materials area 1988 | -8/Materials | Evolved 2 slots: Propulsion x1, Utility x1 2295 | -8/Materials | Build established: Scavenger-Mutant 2558 | -8/Materials | Lost 5 parts (3u2w) 2629 | -8/Materials | Build established: Mutant 2685 | -8/Materials | Repaired Adv. Treads 2784 | -8/Materials | Discovered new exit (range 15) 2806 | -8/Materials | Entered Factory 2806 | -7/Factory | Evolved 2 slots: Propulsion x1, Utility x1 2822 | -7/Factory | Identified exit to DSF 2822 | -7/Factory | Entered DSF 2864 | -7/DSF | Additional patrols routed to DSF 3089 | -7/DSF | Core integrity fell below 50% 3091 | -7/DSF | Discovered new exit (range 16) 3115 | -7/DSF | Entered Factory 3115 | -6/Factory | Evolved 2 slots: Utility x2 3128 | -6/Factory | Lost 6 parts (1p2n3w) 3396 | -6/Factory | Build established: Hacker-Mutant 3482 | -6/Factory | Discovered new exit (range 11) 3579 | -6/Factory | Lost 3 parts (2n1u) 3719 | -6/Factory | Core integrity fell below 50% 3725 | -6/Factory | Self-destructed Last Messages --------------- 03620_ S-27 Virus destroyed. 03662_ Acquired Proton Missile Launcher. 03686_ Katana follow-up attack on L-41 Fighter. 03686_ Angular Momentum Engine destroyed. 03688_ Adv. Treads destroyed. 03688_ Katana follow-up attack on L-41 Fighter. 03692_ Imp. Light Armor Plating destroyed. 03699_ L-41 Fighter Carbon-fiber Leg severed. 03699_ Adv. Treads destroyed. 03701_ L-41 Fighter destroyed. 03703_ Adv. Treads destroyed. 03704_ R-10 Processor collects Axe. 03707_ Adv. Heat Sink destroyed. 03709_ R-10 Processor collects Imp. Melee Analysis Suite. 03710_ ALERT: Security rotation in progress. 03711_ Hacking Suite destroyed. 03711_ R-10 Processor collects Carbon-fiber Leg. 03712_ R-10 Processor collects Core Shielding. 03713_ Structural Scanner destroyed. 03713_ Critical hit (Burn: +37). Map ----- +----------------------------------------------------+ | | | | | | | | | | | | | | | | | | | | | | | | | | | | | | | | | | | | | ???#########################?????????????????????? | | ???## # ##?????????????????????? | | ???## """" # ##################?????? | | ???## """" # ##################?????? | | ???## % """" # ; ###????? | | ???## """" # ggg# ###????? | | ???## """" # R +% ] ??? | | ???## """" # @### / """ ??? | | ???## *%% ######/######## """ ????????? | | ???#######+####### ###### ! """ ?????????? | | ######## *% ###### ?????????? | | ######## < ????????? | | # ## ###### ???????? | | #"" ## ####### #######+########## ??????? | | #"" ## ######### ####??# #######/???????? | | #""" ## ### ## ####????????????????????????? | | #""" ## ###" !## ##??????????????????????????? | | #""" + ###T= *## ##??????????????????????????? | | # |# ###" ## ##??????????????????????????? | | ###+### ### ## ##??????????????????????????? | | + ##+##??????????????????????????? | | #### ! # ??????????????????????????? | | ^ #### # ?????????????????????????????? | | ####! # ?????????????????????????????? | | ######### ?????????????????????????????? | | ###### ?????????????????????????????? | | ##??????????????????????????????????? | | # ##??????????????????????????????????? | | ### ######## ##??????????????????????????????????? | | ### ######## ##??????????????????????????????????? | | ?## ##?????? ##??????????????????????????????????? | | ?##+##???????????????????????????????????????????? | +----------------------------------------------------+ Best States ------------- Heat Dissipation 56 Energy Generation 18 Energy Capacity 300 Matter Stores 300 Matter Capacity 300 Sight Range 16 Terrain Scan Density 10 Armor Coverage 150 Evasion (%) 42 Targeting Accuracy 18 Recoil Reduction 4 Offensive Hacking 10 Defensive Hacking 10 Authchip Count 2 Item Schematics ----------------- None Robot Schematics ------------------ None Fabricated ------------ Nothing Alien Tech Used ----------------- None Achievements -------------- None Challenges ------------ None Game ------ Seed TeslaCoolingReconstructor Manual? 0 Play Time 00:36:22 Cumulative 22.6 hours Start 2024.04.11 @ 13:30:13 End 2024.04.11 @ 14:08:10 Sessions 1 Manual Loads 0 Difficulty Rogue Special Mode None Game No. 36 Rogue 36 Adventurer 0 Explorer 0 Win Type - Total 1 Types 1/0/0/0/0/0/0/0/0 Lore% 17 Gallery% 36 Achievement% 31 Wizard Run 0 Options --------- Layout 0 ASCII 0 Keyboard 0 Movement Numpad Keybinds 0 Fullscreen 2 Font 18/SmallcapsGlow Map View 76x50 Zoom Use 0% Tactical HUD 1 Map Filters NONE Filters NONE Steam 1 RUN: 5b91d43e-c2fa-4e08-9fa5-331878597d68